bitfinex-derivatives/quotes_BTCF0:USTF0_20240923
["timestamp","ask_amount","ask_price","bid_price","bid_amount"]
[1727065094725,0.0492,64323.0,64308.0,1.53874439]
[1727065094726,0.077734,64318.0,64315.0,0.13]
[1727065094927,0.0492,64323.0,64313.0,0.07774]
[1727065095320,0.0492,64323.0,64317.0,0.04651089]
[1727065095715,0.077736,64317.0,64316.0,0.04651089]
[1727065095917,0.13,64322.0,64316.0,0.04651089]
[1727065096114,0.077731,64321.0,64318.0,0.04651089]
[1727065096316,0.077731,64321.0,64309.0,0.126744]
[1727065096317,0.001,64318.0,64315.0,0.04751089]
[1727065096521,0.078734,64318.0,64317.0,0.001]
[1727065097123,0.126332,64320.0,64316.0,0.001]
[1727065097313,0.077732,64320.0,64318.0,0.001]
[1727065097822,0.077733,64319.0,64318.0,0.001]
[1727065098119,0.078734,64318.0,64317.0,0.003]
[1727065099413,0.439534,64318.0,64317.0,0.002]
[1727065099837,0.077736,64317.0,64316.0,0.04651089]
[1727065100122,0.077738,64315.0,64314.0,0.04651089]
[1727065100326,0.13,64317.0,64310.0,0.04651089]
[1727065100518,0.077743,64311.0,64310.0,0.04651089]
[1727065100819,0.077744,64310.0,64309.0,0.04651089]
[1727065102810,0.077744,64310.0,64308.0,0.04651089]
[1727065103011,0.078744,64310.0,64309.0,0.001]
[1727065103423,0.079744,64310.0,64309.0,0.002]
[1727065104119,0.079744,64310.0,64309.0,0.001]
[1727065106129,0.079744,64310.0,64309.0,0.002]
[1727065106825,0.440544,64310.0,64309.0,0.002]
[1727065112627,0.440544,64310.0,64309.0,0.04851089]
[1727065113241,0.440544,64310.0,64309.0,0.002]
[1727065114022,0.3628,64310.0,64309.0,0.04851089]
[1727065114331,0.3628,64310.0,64309.0,0.079745]
[1727065114532,0.3628,64310.0,64309.0,0.14182065]
[1727065115735,0.570544,64310.0,64307.0,0.04658452]
[1727065115930,0.077746,64308.0,64306.0,0.04658452]
[1727065116129,0.07776,64297.0,64294.0,0.0036]
[1727065116425,0.3608,64295.0,64284.0,0.20762004]
[1727065116624,0.07776,64297.0,64289.0,0.13]
[1727065116835,0.077749,64306.0,64294.0,0.13]
[1727065117031,0.07776,64297.0,64295.0,0.07181758]
[1727065117228,0.07776,64297.0,64289.0,0.23316166]
[1727065117229,0.077768,64290.0,64289.0,0.23316166]
[1727065117429,0.568568,64290.0,64288.0,0.0016]
[1727065117925,0.438568,64290.0,64288.0,0.0016]
[1727065118235,0.13,64289.0,64288.0,0.0016]
[1727065118429,0.13,64289.0,64275.0,0.0036]
[1727065118625,0.13,64289.0,64276.0,0.02432118]
[1727065118837,0.438568,64290.0,64277.0,0.02432118]
[1727065119027,0.4097,64296.0,64284.0,0.13]
[1727065119430,0.4097,64296.0,64289.0,0.001]
[1727065119643,0.077768,64291.0,64289.0,0.001]
[1727065119932,0.077768,64291.0,64281.0,0.23469446]
[1727065120139,0.078769,64290.0,64282.0,0.02431863]
[1727065120335,0.078769,64290.0,64281.0,0.23469446]
[1727065120336,0.929377,64283.0,64281.0,0.23469446]
[1727065120537,0.0483,64282.0,64276.0,0.3608]
[1727065120735,0.3608,64286.0,64276.0,0.3608]
[1727065120736,0.077777,64283.0,64276.0,0.3608]
[1727065120934,0.3608,64288.0,64276.0,0.3608]
[1727065121132,0.077777,64283.0,64282.0,0.001]
[1727065121444,0.3663,64283.0,64266.0,0.3608]
[1727065121629,0.3663,64283.0,64244.0,0.02417274]
[1727065121630,0.077808,64258.0,64244.0,0.02417274]
[1727065121831,0.3608,64267.0,64244.0,0.02417274]
[1727065121832,0.3608,64267.0,64257.0,0.13]
[1727065122131,0.13,64273.0,64261.0,0.3608]
[1727065122335,0.3616,64281.0,64262.0,0.13]
[1727065122530,0.3616,64281.0,64268.0,0.13]
[1727065122531,0.07779,64273.0,64268.0,0.13]
[1727065122731,0.3608,64281.0,64268.0,0.13]
[1727065122938,0.077782,64279.0,64272.0,0.13]
[1727065123345,0.00233442,64283.0,64272.0,0.13]
[1727065123346,0.077784,64278.0,64272.0,0.13]
[1727065125551,0.438584,64278.0,64272.0,0.13]
[1727065125735,0.439584,64278.0,64272.0,0.13]
[1727065126235,0.440584,64278.0,64272.0,0.13]
[1727065126735,0.3628,64278.0,64272.0,0.13]
[1727065127742,0.3628,64278.0,64267.0,0.3608]
[1727065128244,0.13,64275.0,64264.0,0.0495]
[1727065128745,0.13,64275.0,64265.0,0.23328208]
[1727065129443,0.077797,64267.0,64265.0,0.23328208]
[1727065129954,0.002,64275.0,64266.0,0.207797]
[1727065130138,0.002,64275.0,64265.0,0.23328208]
[1727065130139,0.002,64275.0,64273.0,0.077789]
[1727065130636,0.002,64275.0,64274.0,0.46676]
[1727065130836,0.3608,64286.0,64274.0,0.70016804]
[1727065131035,0.438574,64286.0,64281.0,0.3608]
[1727065131248,0.077774,64285.0,64281.0,0.3608]
[1727065131441,0.3608,64286.0,64281.0,0.3608]
[1727065131648,0.3608,64286.0,64278.0,0.207782]
[1727065132236,0.077777,64283.0,64279.0,0.077781]
[1727065132433,0.077777,64283.0,64279.0,0.438581]
[1727065132637,0.077777,64283.0,64280.0,0.0452]
[1727065133643,0.07778,64280.0,64279.0,0.0016]
[1727065133845,0.07778,64280.0,64274.0,0.3608]
[1727065133846,0.07778,64280.0,64276.0,0.077785]
[1727065134448,0.077782,64279.0,64275.0,0.23212098]
[1727065134648,0.002,64283.0,64274.0,0.50966973]
[1727065134649,0.13,64282.0,64274.0,0.3624]
[1727065134840,0.077786,64276.0,64274.0,0.3608]
[1727065135837,0.125086,64276.0,64274.0,0.3608]
[1727065136245,0.077795,64268.0,64266.0,0.3608]
[1727065136853,0.077795,64268.0,64262.0,0.077802]
[1727065137039,0.3608,64270.0,64262.0,0.08267701]
[1727065137244,0.3608,64270.0,64263.0,0.23436169]
[1727065137449,0.077795,64268.0,64263.0,0.31216269]
[1727065137753,0.077796,64267.0,64263.0,0.23436169]
[1727065138141,0.077785,64277.0,64272.0,0.07779]
[1727065138350,0.077783,64278.0,64272.0,0.07779]
[1727065138946,0.077783,64278.0,64266.0,0.569596]
[1727065139147,0.077789,64273.0,64267.0,0.077796]
[1727065139346,0.077783,64278.0,64266.0,0.3608]
[1727065139347,0.077795,64268.0,64266.0,0.3608]
[1727065139550,0.077796,64267.0,64266.0,0.3608]
[1727065140253,0.3608,64271.0,64262.0,0.00487501]
[1727065140451,0.0933,64270.0,64259.0,0.3608]
[1727065140657,0.0933,64270.0,64264.0,0.23243548]
[1727065140852,0.0778,64264.0,64263.0,0.23243548]
[1727065141060,0.077803,64261.0,64259.0,0.3608]
[1727065141653,0.2233,64270.0,64259.0,0.3608]
[1727065141958,0.077805,64260.0,64259.0,0.3608]
[1727065142650,0.077805,64260.0,64259.0,0.3618]
[1727065143563,0.078805,64260.0,64259.0,0.3618]
[1727065144059,0.079805,64260.0,64259.0,0.3618]
[1727065144444,0.079805,64260.0,64259.0,0.001]
[1727065145859,0.078805,64260.0,64259.0,0.001]
[1727065146056,0.079805,64260.0,64259.0,0.001]
[1727065146369,0.002,64260.0,64259.0,0.001]
[1727065146561,0.079805,64260.0,64259.0,0.001]
[1727065146855,0.002,64260.0,64259.0,0.078806]
[1727065147551,0.002,64260.0,64259.0,0.31294577]
[1727065148153,0.13,64274.0,64259.0,0.31294577]
[1727065148154,0.077785,64276.0,64259.0,1.30197977]
[1727065148353,0.3608,64277.0,64268.0,0.077794]
[1727065149060,0.0916,64282.0,64266.0,0.3608]
[1727065149061,0.077793,64270.0,64266.0,0.3608]
[1727065149259,0.077795,64268.0,64263.0,0.077801]
[1727065150562,0.077795,64268.0,64260.0,0.0477]
[1727065150563,0.001,64268.0,64260.0,0.0477]
[1727065150948,0.001,64268.0,64261.0,0.23379615]
[1727065151356,0.077798,64266.0,64263.0,0.078801]
[1727065151869,0.002,64268.0,64264.0,0.077799]
[1727065152361,0.002,64268.0,64263.0,0.002]
[1727065152565,0.001,64266.0,64263.0,0.004]
[1727065152867,0.001,64266.0,64263.0,0.002]
[1727065153066,0.002,64266.0,64265.0,0.077798]
[1727065153266,0.001,64266.0,64265.0,0.077798]
[1727065153456,0.001,64266.0,64264.0,0.002]
[1727065154265,0.001,64266.0,64265.0,0.438598]
[1727065154865,0.077792,64271.0,64268.0,0.077794]
[1727065155261,0.077792,64271.0,64269.0,0.077793]
[1727065155878,0.3608,64275.0,64271.0,0.077791]
[1727065156365,0.438587,64275.0,64271.0,0.077791]
[1727065156668,0.077789,64273.0,64271.0,0.077791]
[1727065157370,0.077792,64270.0,64269.0,0.002]
[1727065158172,0.077792,64270.0,64269.0,0.001]
[1727065158671,0.077792,64270.0,64265.0,0.3608]
[1727065158672,0.077797,64267.0,64265.0,0.3608]
[1727065159376,0.077797,64266.0,64265.0,0.438598]
[1727065159673,0.124297,64266.0,64265.0,0.438598]
[1727065159965,0.124297,64266.0,64265.0,0.439598]
[1727065160369,0.125297,64266.0,64265.0,0.439598]
[1727065160571,0.125297,64266.0,64265.0,0.3618]
[1727065161159,0.125297,64266.0,64265.0,0.001]
[1727065161360,0.126297,64266.0,64265.0,0.002]
[1727065162064,0.124297,64266.0,64265.0,0.002]
[1727065162564,0.14952212,64266.0,64265.0,0.002]
[1727065162773,0.14952212,64266.0,64265.0,0.001]
[1727065162973,0.14952212,64266.0,64265.0,0.002]
[1727065163159,0.14952212,64266.0,64265.0,0.00680342]
[1727065163485,0.74632212,64266.0,64253.0,0.4241]
[1727065163666,0.74632212,64266.0,64254.0,0.0632577]
[1727065163667,0.09257795,64259.0,64254.0,0.0632577]
[1727065163858,0.09257795,64259.0,64245.0,0.365]
[1727065163859,0.13,64255.0,64245.0,0.3644]
[1727065164064,0.077816,64251.0,64246.0,0.06326263]
[1727065164260,0.077816,64251.0,64247.0,0.02433178]
[1727065164261,0.02522986,64250.0,64247.0,0.02433178]
[1727065164471,0.02522986,64250.0,64248.0,0.02433178]
[1727065164667,0.02522986,64250.0,64245.0,0.36549217]
[1727065164869,0.02522986,64250.0,64246.0,0.06326385]
[1727065165069,0.02522986,64250.0,64245.0,0.36549217]
[1727065165070,0.02522986,64250.0,64247.0,0.02433225]
[1727065165368,0.02522986,64250.0,64248.0,0.02433225]
[1727065165568,0.077818,64249.0,64248.0,0.001]
[1727065165863,0.10304786,64249.0,64248.0,0.001]
[1727065166262,1.144738,64249.0,64248.0,0.002]
[1727065166468,0.56996875,64249.0,64248.0,0.002]
[1727065166769,1.16996875,64249.0,64248.0,0.002]
[1727065166976,1.26253488,64249.0,64248.0,0.002]
[1727065167276,1.16996875,64249.0,64248.0,0.002]
[1727065167465,1.16996875,64249.0,64248.0,0.001]
[1727065167666,1.16996875,64249.0,64236.0,0.3608]
[1727065167667,0.077826,64243.0,64236.0,0.3608]
[1727065167979,0.13,64242.0,64237.0,0.02433514]
[1727065168166,0.13,64242.0,64238.0,0.02433514]
[1727065168367,0.13,64242.0,64236.0,0.36560771]
[1727065168368,0.077828,64241.0,64236.0,0.36560771]
[1727065168579,0.07783,64239.0,64237.0,0.0243365]
[1727065168777,0.07783,64239.0,64236.0,0.36560771]
[1727065168778,0.077832,64237.0,64236.0,0.36560771]
[1727065168966,0.077832,64237.0,64236.0,0.36660771]
[1727065169165,0.077832,64237.0,64236.0,0.3618]
[1727065169367,0.077832,64237.0,64236.0,0.001]
[1727065169567,0.077832,64237.0,64231.0,0.0468]
[1727065169769,0.077832,64237.0,64236.0,0.001]
[1727065170792,0.544872,64237.0,64236.0,0.001]
[1727065171773,0.077836,64234.0,64231.0,0.00476464]
[1727065171973,0.077836,64234.0,64230.0,0.3608]
[1727065172183,0.077836,64234.0,64228.0,0.438643]
[1727065172482,0.0462,64236.0,64229.0,0.23468202]
[1727065172483,0.077837,64233.0,64229.0,0.23468202]
[1727065172681,0.077837,64233.0,64229.0,0.31252402]
[1727065172982,0.207837,64233.0,64229.0,0.31252402]
[1727065173574,0.131,64233.0,64229.0,0.23468202]
[1727065173774,0.3608,64232.0,64228.0,0.00490234]
[1727065173976,0.077844,64228.0,64223.0,0.077848]
[1727065174177,0.207848,64224.0,64221.0,0.0484]
[1727065174379,0.077849,64223.0,64221.0,0.0484]
[1727065175100,0.077849,64223.0,64221.0,0.126251]
[1727065175295,0.208844,64228.0,64221.0,0.0484]
[1727065175697,0.001,64223.0,64222.0,0.077851]
[1727065176294,0.002,64223.0,64218.0,0.077855]
[1727065176499,0.079849,64223.0,64215.0,0.4061]
[1727065176797,0.079849,64223.0,64222.0,0.077851]
[1727065176798,0.002,64223.0,64222.0,0.077851]
[1727065177097,0.001,64223.0,64222.0,0.077851]
[1727065177893,0.002,64223.0,64222.0,0.077851]
[1727065178096,0.077836,64234.0,64222.0,0.59337764]
[1727065178401,0.001,64223.0,64222.0,0.59337764]
[1727065178695,0.001,64223.0,64222.0,0.72337764]
[1727065179099,0.001,64223.0,64222.0,0.59337764]
[1727065179500,0.001,64223.0,64222.0,0.67122864]
[1727065180090,0.001,64223.0,64217.0,0.077855]
[1727065180404,0.208849,64223.0,64222.0,0.001]
[1727065180594,0.001,64223.0,64222.0,0.078851]
[1727065180897,0.001,64223.0,64222.0,0.077851]
[1727065181101,0.002,64223.0,64222.0,0.001]
[1727065181291,0.132,64223.0,64222.0,0.001]
[1727065181694,0.209849,64223.0,64222.0,0.001]
[1727065182003,0.208849,64223.0,64222.0,0.001]
[1727065182195,0.209849,64223.0,64222.0,0.002]
[1727065185501,0.079849,64223.0,64222.0,0.002]
[1727065185704,1.276969,64223.0,64211.0,0.077863]
[1727065185902,0.13,64212.0,64211.0,0.077863]
[1727065187009,0.13,64212.0,64211.0,0.08274227]
[1727065187312,0.13,64212.0,64201.0,0.4111764]
[1727065187313,1.1972,64212.0,64201.0,0.40884]
[1727065187514,0.156726,64212.0,64211.0,0.001]
[1727065187813,0.676063,64212.0,64211.0,0.001]
[1727065188201,1.276063,64212.0,64211.0,0.001]
[1727065188607,0.079863,64212.0,64211.0,0.001]
[1727065188804,0.002,64212.0,64211.0,0.001]
[1727065189015,0.001,64212.0,64211.0,0.001]
[1727065189198,0.002,64212.0,64211.0,0.001]
[1727065189402,0.209863,64212.0,64201.0,0.41361401]
[1727065189603,0.209863,64212.0,64201.0,0.41201401]
[1727065189906,0.209863,64212.0,64207.0,0.3608]
[1727065190102,0.208863,64212.0,64208.0,0.077867]
[1727065190300,0.208863,64212.0,64207.0,0.3608]
[1727065190301,0.209863,64212.0,64207.0,0.3608]
[1727065191008,0.209863,64212.0,64209.0,0.077865]
[1727065191410,0.209863,64212.0,64207.0,0.3608]
[1727065191610,0.209863,64212.0,64208.0,0.077868]
[1727065191812,0.209863,64212.0,64207.0,0.3608]
[1727065192114,0.077866,64210.0,64207.0,0.3608]
[1727065192608,0.131,64212.0,64209.0,0.077866]
[1727065192811,0.132,64212.0,64209.0,0.077866]
[1727065193606,0.001,64210.0,64209.0,0.077866]
[1727065194001,0.077868,64208.0,64207.0,0.438669]
[1727065194511,0.077868,64208.0,64207.0,0.3608]
[1727065194512,0.675108,64208.0,64207.0,0.3608]
[1727065194811,0.077871,64205.0,64204.0,0.077872]
[1727065196711,0.077874,64203.0,64201.0,0.41361401]
[1727065196915,0.077874,64203.0,64202.0,0.077875]
[1727065197113,0.001,64205.0,64204.0,0.077872]
[1727065197507,0.002,64205.0,64204.0,0.37477026]
[1727065197706,0.002,64205.0,64204.0,0.31288688]
[1727065197904,0.3667367,64225.0,64204.0,1.38012688]
[1727065198212,0.3631367,64225.0,64215.0,0.3608]
[1727065198409,0.3631367,64225.0,64216.0,0.0934]
[1727065198715,0.3631367,64225.0,64216.0,0.1386]
[1727065198913,0.077854,64220.0,64216.0,0.216457]
[1727065199313,0.3631367,64225.0,64216.0,0.216457]
[1727065199314,0.077855,64219.0,64216.0,0.216457]
[1727065199805,0.077856,64218.0,64216.0,0.216457]
[1727065200002,0.077856,64218.0,64216.0,0.217457]
[1727065200614,0.0033367,64225.0,64216.0,0.217457]
[1727065200615,0.077849,64224.0,64221.0,0.077852]
[1727065200822,0.0023367,64225.0,64223.0,0.077849]
[1727065201135,0.077848,64224.0,64221.0,0.3608]
[1727065201319,0.077854,64220.0,64216.0,0.5014]
[1727065201612,0.077855,64219.0,64217.0,0.23236931]
[1727065201813,0.077855,64219.0,64216.0,0.579258]
[1727065201814,0.077855,64218.0,64216.0,0.579858]
[1727065202009,0.077857,64217.0,64216.0,0.5004]
[1727065202318,0.077857,64217.0,64216.0,0.73404389]
[1727065202513,0.077857,64217.0,64216.0,0.73504389]
[1727065202816,0.077849,64224.0,64216.0,0.73604389]
[1727065203014,0.3608,64225.0,64224.0,0.077848]
[1727065203212,0.0471,64236.0,64224.0,0.3608]
[1727065203213,0.077838,64232.0,64224.0,0.3608]
[1727065203415,0.077841,64230.0,64224.0,0.3608]
[1727065203606,0.077842,64230.0,64224.0,0.438648]
[1727065203822,0.13,64234.0,64224.0,0.3608]
[1727065204313,0.077844,64228.0,64224.0,0.3608]
[1727065205208,0.077845,64227.0,64224.0,0.3608]
[1727065205815,0.13,64229.0,64224.0,0.3608]
[1727065206014,0.077854,64219.0,64216.0,0.0463]
[1727065206423,0.077854,64219.0,64218.0,0.23439549]
[1727065206719,0.077854,64219.0,64217.0,0.077856]
[1727065207224,0.077854,64219.0,64218.0,0.23445136]
[1727065207520,0.077848,64224.0,64218.0,0.23445136]
[1727065207711,0.077848,64224.0,64219.0,0.06202984]
[1727065207905,0.077848,64224.0,64220.0,0.077852]
[1727065208211,0.077848,64224.0,64220.0,0.29531462]
[1727065208404,0.077852,64221.0,64220.0,0.23328478]
[1727065209412,0.077852,64221.0,64220.0,0.23428478]
[1727065209819,0.002,64224.0,64222.0,0.07785]
[1727065210021,0.002,64224.0,64222.0,0.20785]
[1727065210212,0.001,64224.0,64222.0,0.20785]
[1727065210615,0.077846,64226.0,64222.0,0.13]
[1727065210811,0.077846,64226.0,64221.0,0.06202984]
[1727065211118,0.077846,64226.0,64222.0,0.001]
[1727065211709,0.438639,64232.0,64228.0,0.077843]
[1727065211905,0.077834,64236.0,64229.0,0.1754]
[1727065212113,0.3608,64237.0,64229.0,0.0454]
[1727065212321,0.3608,64237.0,64228.0,0.077843]
[1727065212322,0.13,64236.0,64228.0,0.077843]
[1727065212614,0.13,64236.0,64227.0,0.3608]
[1727065213014,0.1763,64236.0,64227.0,0.3608]
[1727065213521,0.1763,64236.0,64228.0,0.001]
[1727065214211,0.077842,64229.0,64228.0,0.001]
[1727065214413,0.077842,64229.0,64228.0,0.02534041]
[1727065214723,0.077842,64229.0,64228.0,0.001]
[1727065215020,0.077843,64228.0,64227.0,0.3618]
[1727065215218,0.077843,64228.0,64227.0,0.38614052]
[1727065215617,0.077843,64228.0,64227.0,0.38514052]
[1727065216415,0.077843,64228.0,64227.0,0.3608]
[1727065216726,0.077843,64228.0,64227.0,0.3618]
[1727065218625,0.080843,64228.0,64227.0,0.3618]
[1727065219123,0.082843,64228.0,64227.0,0.3608]
[1727065220022,0.082843,64228.0,64227.0,0.3618]
[1727065220023,0.077843,64228.0,64227.0,0.3618]
[1727065221508,0.077843,64228.0,64227.0,0.3608]
[1727065225416,0.079843,64228.0,64227.0,0.3608]
[1727065226326,0.082843,64228.0,64227.0,0.3608]
[1727065226926,0.079843,64228.0,64227.0,0.3608]
[1727065227624,0.077843,64228.0,64227.0,0.3608]
[1727065227925,0.077843,64228.0,64227.0,0.42282984]
[1727065228323,0.079843,64228.0,64227.0,0.42282984]
[1727065228524,0.079843,64228.0,64227.0,0.3608]
[1727065229121,0.077843,64228.0,64227.0,0.4240214]
[1727065229330,0.13,64232.0,64227.0,0.4240214]
[1727065229331,0.0463,64236.0,64227.0,0.3618]
[1727065229527,0.07784,64231.0,64230.0,0.06223187]
[1727065229830,0.003,64228.0,64227.0,0.3618]
[1727065230331,0.07784,64231.0,64227.0,0.3618]
[1727065230532,0.07784,64231.0,64228.0,0.06223514]
[1727065231032,0.077843,64228.0,64227.0,0.3618]
[1727065231233,0.17020269,64228.0,64227.0,0.3618]
[1727065231537,0.19544259,64228.0,64227.0,0.3618]
[1727065231831,0.19544259,64228.0,64227.0,0.3608]
[1727065232228,0.19546545,64228.0,64227.0,0.3608]
[1727065232630,0.19546545,64228.0,64227.0,0.36946]
[1727065232822,0.1030829,64228.0,64227.0,0.36946]
[1727065233029,0.19546545,64228.0,64227.0,0.36946]
[1727065233538,0.19546563,64228.0,64227.0,0.36946]
[1727065234331,0.19546563,64228.0,64227.0,0.37046]
[1727065234530,0.19547674,64228.0,64227.0,0.37046]
[1727065234920,0.10308308,64228.0,64227.0,0.36946]
[1727065235321,0.17024423,64228.0,64227.0,0.36946]
[1727065235533,0.10308228,64228.0,64227.0,0.36946]
[1727065235730,0.10308228,64228.0,64227.0,0.37046]
[1727065235731,0.02523928,64228.0,64227.0,0.37046]
[1727065235929,0.02523879,64228.0,64227.0,0.43374593]
[1727065236133,0.09240123,64230.0,64229.0,0.077842]
[1727065236324,0.0252388,64230.0,64228.0,0.0907]
[1727065236529,0.077838,64233.0,64230.0,0.07784]
[1727065236731,0.077838,64233.0,64228.0,0.0907]
[1727065236732,0.08520113,64232.0,64231.0,0.07784]
[1727065237026,0.08530788,64232.0,64231.0,0.07784]
[1727065237528,0.02523897,64232.0,64231.0,0.07784]
[1727065237833,0.077838,64233.0,64231.0,0.07784]
[1727065238025,0.003,64232.0,64231.0,0.07784]
[1727065238422,0.004,64232.0,64231.0,0.07784]
[1727065238725,0.3608,64239.0,64238.0,0.077831]
[1727065239030,0.3608,64239.0,64238.0,0.17997016]
[1727065239230,0.3608,64239.0,64238.0,0.077831]
[1727065240126,0.44763,64239.0,64238.0,0.077831]
[1727065240522,0.45563,64239.0,64238.0,0.077831]
[1727065240726,0.3778,64239.0,64238.0,0.077831]
[1727065241231,0.3778,64239.0,64238.0,0.10216788]
[1727065241431,0.3778,64239.0,64238.0,0.077831]
[1727065241937,0.3778,64239.0,64238.0,0.10216778]
[1727065243224,0.3778,64239.0,64238.0,0.13999581]
[1727065243427,0.45563,64239.0,64238.0,0.06216481]
[1727065243627,0.077831,64238.0,64237.0,0.06216481]
[1727065243831,0.077831,64238.0,64236.0,0.06216481]
[1727065244233,0.3778,64239.0,64238.0,0.077831]
[1727065244728,0.3778,64239.0,64238.0,0.13999119]
[1727065244931,0.44763,64239.0,64238.0,0.06216019]
[1727065245134,0.44763,64239.0,64237.0,0.06216019]
[1727065245428,0.077831,64238.0,64237.0,0.06216019]
[1727065245732,0.084831,64238.0,64237.0,0.06216019]
[1727065245949,0.007,64238.0,64237.0,0.13999219]
[1727065246430,0.3768,64239.0,64237.0,0.06216019]
[1727065246630,0.3768,64239.0,64233.0,0.438637]
[1727065246631,0.3768,64239.0,64238.0,0.04661281]
[1727065246826,0.077831,64238.0,64237.0,0.04661281]
[1727065247043,0.085831,64238.0,64237.0,0.04661281]
[1727065247230,0.077838,64232.0,64231.0,0.04661281]
[1727065247435,0.13,64234.0,64229.0,0.04661281]
[1727065247736,0.077843,64228.0,64227.0,0.41607281]
[1727065247939,0.077843,64228.0,64227.0,0.36946]
[1727065248339,0.077843,64228.0,64227.0,0.43161716]
[1727065248550,0.077843,64228.0,64227.0,0.36946]
[1727065249039,0.077843,64228.0,64227.0,0.39380093]
[1727065249341,0.077843,64228.0,64227.0,0.36946]
[1727065249742,0.077843,64228.0,64227.0,0.4259585]
[1727065250044,0.077843,64228.0,64227.0,0.3638]
[1727065250449,0.077843,64228.0,64227.0,0.42595894]
[1727065250641,0.077843,64228.0,64227.0,0.4279586]
[1727065251082,0.077843,64228.0,64227.0,0.3658]
[1727065251543,0.077843,64228.0,64227.0,0.42796044]
[1727065252644,0.077843,64228.0,64227.0,0.3658]
[1727065252842,0.0945,64237.0,64227.0,0.3658]
[1727065253147,0.0945,64237.0,64227.0,0.3638]
[1727065253148,0.07403965,64236.0,64227.0,0.3638]
[1727065253338,0.02523965,64235.0,64227.0,0.3638]
[1727065253538,0.07784,64231.0,64228.0,0.08762677]
[1727065253844,0.07784,64231.0,64227.0,0.4948]
[1727065254151,0.077835,64235.0,64230.0,0.077841]
[1727065254353,0.077835,64235.0,64231.0,0.07784]
[1727065254544,0.3608,64239.0,64238.0,0.077831]
[1727065254747,0.3860365,64239.0,64234.0,0.3608]
[1727065255050,0.077834,64236.0,64234.0,0.3608]
[1727065255439,0.13,64238.0,64228.0,0.00485273]
[1727065255640,0.13,64238.0,64229.0,0.11196497]
[1727065255641,0.13,64234.0,64229.0,0.11196497]
[1727065255944,0.3608,64239.0,64229.0,0.11196497]
[1727065255945,0.3608,64239.0,64233.0,0.4908]
[1727065256247,0.3608,64239.0,64238.0,0.207831]
[1727065256442,0.3608,64239.0,64238.0,0.31979166]
[1727065256751,0.004,64239.0,64238.0,0.31979166]
[1727065257243,0.45344209,64252.0,64245.0,0.077822]
[1727065257438,0.02523238,64251.0,64247.0,0.13]
[1727065257636,0.3608,64252.0,64247.0,0.13]
[1727065257837,0.3608,64252.0,64247.0,0.25592]
[1727065258147,0.3608,64252.0,64247.0,0.12592]
[1727065258349,0.014,64252.0,64247.0,0.12592]
[1727065258649,0.014,64252.0,64243.0,0.13]
[1727065258949,0.077818,64249.0,64244.0,0.06326552]
[1727065259146,0.077818,64249.0,64245.0,0.02433289]
[1727065259345,0.077818,64249.0,64246.0,0.02433289]
[1727065259642,0.077818,64249.0,64247.0,0.02533289]
[1727065259848,0.077818,64249.0,64248.0,0.02433261]
[1727065260056,0.077818,64249.0,64247.0,0.001]
[1727065260259,0.091818,64249.0,64248.0,0.04656834]
[1727065260553,0.091818,64249.0,64247.0,0.001]
[1727065260748,0.091818,64249.0,64247.0,0.002]
[1727065260950,0.105818,64249.0,64248.0,0.001]
[1727065261250,0.105818,64249.0,64248.0,0.0475599]
[1727065261644,0.105818,64249.0,64248.0,0.04755963]
[1727065261849,0.105818,64249.0,64248.0,0.001]
[1727065262248,0.077819,64248.0,64247.0,0.002]
[1727065263041,0.544779,64248.0,64247.0,0.001]
[1727065263745,0.558779,64248.0,64247.0,0.001]
[1727065264053,0.091819,64248.0,64247.0,0.001]
[1727065264755,0.091819,64248.0,64247.0,0.002]
[1727065264756,1.172779,64248.0,64247.0,0.002]
[1727065265049,1.250598,64248.0,64247.0,0.002]
[1727065265251,0.077831,64238.0,64237.0,0.05521963]
[1727065265453,0.077831,64238.0,64237.0,0.00866]
[1727065266147,0.077831,64238.0,64237.0,0.05521963]
[1727065266354,0.077831,64238.0,64237.0,0.03299734]
[1727065266743,0.084831,64238.0,64237.0,0.03399734]
[1727065266947,0.091831,64238.0,64237.0,0.16399734]
[1727065267149,0.091831,64238.0,64237.0,0.20182044]
[1727065267354,0.014,64238.0,64237.0,0.16399662]
[1727065267545,0.014,64238.0,64237.0,0.34292773]
[1727065267746,0.014,64238.0,64237.0,0.28076729]
[1727065267942,0.3608,64248.0,64237.0,1.50326532]
[1727065267943,0.438619,64248.0,64237.0,1.50326532]
[1727065268156,0.3608,64248.0,64247.0,0.07782]
[1727065268557,0.077818,64249.0,64247.0,0.43862]
[1727065268751,0.08013911,64261.0,64247.0,0.4073764]
[1727065268752,0.077819,64248.0,64247.0,0.4073764]
[1727065269551,0.077819,64248.0,64247.0,0.3608]
[1727065269753,0.091819,64248.0,64247.0,0.3608]
[1727065270349,0.014,64248.0,64243.0,0.0465764]
[1727065270750,0.021,64248.0,64242.0,0.0465764]
[1727065270957,0.021,64248.0,64243.0,0.0465764]
[1727065270958,0.077824,64244.0,64243.0,0.0465764]
[1727065271255,0.077824,64244.0,64242.0,0.0465764]
[1727065271561,0.077824,64244.0,64243.0,0.0475764]
[1727065271756,0.077824,64244.0,64243.0,0.02533467]
[1727065271963,0.10482,64248.0,64243.0,0.02533467]
[1727065272161,0.07782,64247.0,64246.0,0.0465611]
[1727065272355,0.077823,64245.0,64243.0,0.001]
[1727065272558,0.077823,64245.0,64244.0,0.0243337]
[1727065273650,0.087823,64245.0,64244.0,0.0243337]